Cogmind - Beta 16.1 @@@ ROGUE MODE // 2026.02.15 @ 04:11:57 Player: Drago Result: Destroyed by S-27 Virus with Autogun Performance ------------- Evolutions (6) 3000 Regions Visited (19) 3800 Robots Destroyed (321) 1605 Value Destroyed (13797) 13797 Prototype IDs (45) 900 Alien Tech Used (0) 0 Bonus (5825) 5825 TOTAL SCORE: 28927 Bonus ------- High Alert Combat Kills 1444 Follower Combat Kills 602 Entered Garrisons 1000 Used RIF Installer 2500 Aligned with FarCom 300 Friendly Fire -21 Cogmind --------- Core Integrity 0/1150 Matter 176/300 Energy 100/100 System Corruption 2% Temperature Cool (0) Movement Core (50) Location -4/Armory Parts ------- > --- POWER (2) -------- (None) > --- PROPULSION (6) --- (None) > --- UTILITY (7) ------ (None) > --- WEAPON (4) ------- (None) > --- INVENTORY (5) ---- Matter Compressor (250) Advanced Shield Generator Long-range Tractor Beam Matter Neutralizer Great Axe Peak State ------------ > --- POWER ------------ Fusion Reactor Reinforced Quantum Reactor > --- PROPULSION ------- Armored Medium Treads Heavy Treads Armored Huge Wheel > --- UTILITY ---------- Advanced Cooling System High-capacity Storage Unit Core Analyzer Improved Weapon Cycler Improved Light Armor Plating Advanced Shield Generator > --- WEAPON ----------- Coil Gun KE Penetrator Improved KE Penetrator Improved KE Penetrator > --- INVENTORY -------- Fusion Reactor Fusion Reactor Medium Treads Advanced Heat Sink Matter Compressor Modified TNC Advanced Targeting Computer Improved Heavy Armor Plating Layered Light Armor Plating Advanced Shield Generator Relay Coupler [Specialist] Long-range Tractor Beam Heavy Phase Cannon Improved KE Penetrator Improved KE Penetrator Improved KE Penetrator Precision Rocket Launcher Improved Remote Datajack Great Axe [Rating: 104] Favorites ----------- Power Reinforced Quantum Reactor Engine Ion Engine Power Core Light Nuclear Core Reactor Reinforced Quantum Reactor Propulsion Titanium Leg Treads Light Treads Leg Titanium Leg Wheel Armored Huge Wheel Utility High-capacity Storage Unit Device Improved Heat Sink Storage High-capacity Storage Unit Processor Core Analyzer Hackware Relay Coupler [NC] Protection Improved Light Armor Plating Weapon Gauss Rifle Energy Gun Heavy Laser Energy Cannon Beam Cannon Ballistic Gun Gauss Rifle Ballistic Cannon Enhanced Gauss Cannon Launcher Grenade Launcher Special Weapon Improved Remote Datajack Slashing Weapon Great Axe Build | -11 -10 -10 -10 -9 -8 -8 -8 -7 -7 -7 -7 -6 -6 -5 -5 -5 -5 -4 -4 ------- Run | Yrd Mat Min Exi Min Mat Gar Mat Fac Gar Fac Gar Fac Gar Fac Was Fac Gar Fac Arm Slots Evolved 12 | . . . . . 4 . . 2 . . . 2 . 2 . . . 2 . Power 1 | . . . . . . . . . . . . . . 1 . . . . . Propulsion 4 | . . . . . 1 . . 1 . . . 1 . . . . . 1 . Utility 5 | . . . . . 2 . . 1 . . . . . 1 . . . 1 . Weapon 2 | . . . . . 1 . . . . . . 1 . . . . . . . Parts Attached 199 | 7 9 1 . 3 25 8 12 17 15 5 10 2 12 18 2 7 16 29 1 Power 29 | 1 2 . . 1 3 1 1 2 2 . . . . 3 2 1 3 7 . Engine 15 | 1 2 . . 1 2 . . 1 . . . . . . . 1 3 4 . Core 8 | . . . . . 1 1 1 1 1 . . . . 1 . . . 2 . Reactor 6 | . . . . . . . . . 1 . . . . 2 2 . . 1 . Propulsion 43 | 2 2 . . . 8 . 3 2 7 2 1 . 3 2 . 1 6 4 . Treads 20 | 1 1 . . . 2 . . . 3 2 1 . 3 2 . 1 3 1 . Leg 17 | . . . . . 6 . 2 . 3 . . . . . . . 3 3 . Wheel 6 | 1 1 . . . . . 1 2 1 . . . . . . . . . . Hover . | . . . . . . . . . . . . . . . . . . . . Flight . | . . . . . . . . . . . . . . . . . . . . Utility 68 | 2 1 1 . 1 6 5 3 5 4 3 6 1 8 5 . 2 3 11 1 Device 27 | 1 . 1 . . 2 1 . 2 2 1 3 . 1 4 . 1 1 7 . Storage 5 | 1 1 . . . 2 . . . . . . . . . . . . 1 . Processor 5 | . . . . . . 1 . 1 . . . 1 . . . 1 . 1 . Hackware 18 | . . . . . . 1 3 1 1 1 3 . 5 1 . . 1 . 1 Protection 13 | . . . . 1 2 2 . 1 1 1 . . 2 . . . 1 2 . Artifact . | . . . . . . . . . . . . . . . . . . . . Weapon 59 | 2 4 . . 1 8 2 5 8 2 . 3 1 1 8 . 3 4 7 . Energy Gun 4 | 1 . . . . 1 . . . . . . . . . . . 1 1 . Energy Cannon 8 | . 3 . . . . 1 . . . . . . 1 2 . . . 1 . Ballistic Gun 33 | 1 . . . . 7 1 4 7 . . 1 . . 6 . 3 1 2 . Ballistic Cannon 8 | . 1 . . . . . . . 2 . 1 . . . . . 1 3 . Launcher 2 | . . . . 1 . . . . . . . 1 . . . . . . . Special Weapon 3 | . . . . . . . 1 1 . . . . . . . . 1 . . Impact Weapon . | . . . . . . . . . . . . . . . . . . . . Slashing Weapon 1 | . . . . . . . . . . . 1 . . . . . . . . Piercing Weapon . | . . . . . . . . . . . . . . . . . . . . Special Melee Weapon . | . . . . . . . . . . . . . . . . . . . . Unidentified Prototypes 7 | . . . . . 2 . . . . . . 1 . 2 . . . 2 . Parts Lost 91 | . 3 . . 2 3 4 3 6 3 . 1 . 1 11 5 . 12 36 1 Power 17 | . . . . 1 1 . . 2 . . . . . 1 1 . 4 7 . Propulsion 23 | . 1 . . . . . 1 . 2 . . . 1 4 1 . 3 10 . Utility 20 | . 1 . . 1 . 2 . 2 . . . . . 2 1 . 1 9 1 Weapon 31 | . 1 . . . 2 2 2 2 1 . 1 . . 4 2 . 4 10 . Highest Loss Streak 8 | . 1 . . 2 2 2 3 4 3 . 1 . 1 5 4 . 7 8 1 To Critical Strikes 3 | . . . . . 1 . 1 . . . . . . . 1 . . . . Average Backups 15 | 3 8 13 13 13 16 19 18 17 16 18 18 16 17 17 18 11 15 10 5 Power 1 | . 1 2 2 1 1 1 1 . 1 1 1 1 1 1 1 . . . . Propulsion 1 | 2 1 2 2 1 4 6 3 1 . 2 3 2 1 . 1 . 1 . . Utility 8 | . 3 6 6 7 5 9 9 10 9 10 10 10 11 9 9 8 10 8 3 Weapon 3 | . 2 3 3 3 4 2 3 4 3 3 3 3 3 5 6 2 2 2 2 Tool/Special . | . . . . . . . . . . . . . . . . . . . . Unused Backups 23 | 1 1 . . 1 3 2 4 1 1 1 . 1 1 1 . . . 4 1 Power 2 | . . . . . . . . . 1 . . . 1 . . . . . . Propulsion 5 | 1 . . . 1 . . 3 . . . . . . . . . . . . Utility 10 | . . . . . 1 2 1 . . . . . . 1 . . . 4 1 Weapon 6 | . 1 . . . 2 . . 1 . 1 . 1 . . . . . . . Tool/Special . | . . . . . . . . . . . . . . . . . . . . Average Slot Usage (%) 88 | . 94 93 100 92 93 98 98 82 81 84 87 92 92 86 74 82 84 84 12 Engine 3 | . 14 14 14 13 8 . . . . . . . . . . 1 8 4 . Core 2 | . . . . . . 8 9 6 2 . . . . . . . . 3 . Reactor 3 | . . . . . . . . . 4 7 7 6 6 10 8 5 1 . . Treads 11 | . 14 14 14 14 2 . 1 . 11 23 19 26 25 11 9 11 13 11 . Leg 6 | . . . . . 23 27 22 . 3 . . . . . . . 3 10 . Wheel 4 | . 14 14 14 14 1 . 1 14 3 . . . . 3 5 5 2 . . Device 11 | . 10 7 14 2 13 11 9 9 14 13 15 6 5 13 15 16 13 11 4 Storage 7 | . 14 14 14 14 11 9 9 7 7 7 7 6 6 5 5 5 5 4 . Processor 7 | . . . . . . 2 9 11 7 7 7 12 13 6 5 10 11 12 8 Hackware 1 | . . . . . . 1 8 4 . 1 6 . . . . . . . . Protection 4 | . . . . 4 6 10 . 1 7 7 . 5 5 4 3 . 2 3 . Energy Cannon 3 | . 12 14 14 14 2 5 2 . . . . . 5 1 . . . 1 . Ballistic Gun 12 | . 4 . . . 24 21 22 19 7 . 12 13 6 16 13 21 12 4 . Ballistic Cannon 3 | . 9 14 14 7 . . . . 7 7 6 6 5 1 . . 1 5 . Special Weapon 1 | . . . . . . . 2 2 1 6 . 5 6 2 . . . 2 . Peak Build Rating 104 | 7 8 8 9 9 37 39 39 53 65 69 72 78 85 104 104 96 97 89 23 Average Rating 56 | 4 7 7 8 8 27 37 34 47 57 67 67 75 78 88 88 90 78 77 15 On Entrance 44 | . 7 7 8 9 8 37 38 35 44 63 68 68 76 77 104 53 93 67 18 Avg Prop Armor Cover (%) 10 | 13 10 11 11 10 15 . 8 . 4 . . . . 11 16 15 10 6 . Naked Turns 9 | . . . . . . . . . . . . . . . . . . . 9 Heaviest Build 118 | 12 32 32 32 34 73 64 61 68 98 95 91 94 101 118 117 92 92 104 1 Greatest Support 128 | 20 20 10 10 10 51 51 51 56 100 116 116 128 128 128 28 28 80 80 3 Greatest Overweight (x) 4 | 1 3 3 3 3 3 1 1 1 2 . . . 1 4 4 3 3 2 . Average Overweight (x) 1 | . 1 3 3 2 1 1 1 . 1 . . . . 2 3 2 1 . . Largest Inventory Capacity 20 | 8 15 15 15 15 20 20 20 20 20 20 20 20 20 20 20 20 20 20 5 Average Capacity 18 | 7 11 15 15 15 19 20 20 20 20 20 20 20 20 20 20 20 20 19 5 Most Carried 20 | 5 13 14 15 15 20 20 20 20 20 20 20 19 20 20 20 17 18 15 5 Average Carried 16 | 3 8 13 13 13 16 19 18 18 16 19 19 17 19 18 19 12 16 11 5 Final Capacity 20 | 8 15 15 15 15 20 20 20 20 20 20 20 20 20 20 20 20 20 5 5 Final Carried 20 | 5 13 13 15 13 18 20 20 16 18 20 19 19 19 20 18 15 16 5 5 Class Distribution -------------------- 20% | Tank 15% | Mutant 13% | Scavenger-Tank 11% | Bothacker-Tank 10% | Scavenger-Gunner 7% | Skirmisher 6% | Gunner 5% | Scavenger-Skirmisher 4% | Bothacker-Gunner Dominant Class ---------------- Mutant | -10/Materials Mutant | -10/Mines Mutant | -10/Exiles Mutant | -9/Mines Tank | -8/Materials Skirmisher | -8/Garrison Scavenger-Skirmisher | -8/Materials Bothacker-Gunner | -7/Factory Bothacker-Tank | -7/Garrison Tank | -7/Factory Bothacker-Tank | -7/Garrison Scavenger-Tank | -6/Factory Scavenger-Tank | -6/Garrison Tank | -5/Factory Tank | -5/Waste Gunner | -5/Factory Bothacker-Gunner | -5/Garrison Scavenger-Gunner | -4/Factory Mutant | -4/Armory Resources | -11 -10 -10 -10 -9 -8 -8 -8 -7 -7 -7 -7 -6 -6 -5 -5 -5 -5 -4 -4 ----------- Run | Yrd Mat Min Exi Min Mat Gar Mat Fac Gar Fac Gar Fac Gar Fac Was Fac Gar Fac Arm Matter Collected 12278 | 204 301 14 136 90 863 744 673 1007 760 436 884 167 1014 1597 . 758 783 1847 . Remotely 1702 | . . . . . . . . . 321 366 213 . 394 118 . 290 . . . Salvage Created 13979 | 125 689 17 . 8 1218 699 880 928 728 204 658 157 985 2474 . 506 903 2800 . Parts 709 | 9 38 1 . . 57 29 50 59 37 14 35 7 53 130 . 26 30 134 . Haulers Intercepted 11 | . 2 . . . 5 . 1 2 . . . . . 1 . . . . . Recyclers Shooed 15 | . . . . . 4 . . . . . . . . . . . . 11 . Parts Field Recycled . | . . . . . . . . . . . . . . . . . . . . Retrieved Matter . | . . . . . . . . . . . . . . . . . . . . Parts Self-Destructed . | . . . . . . . . . . . . . . . . . . . . Prevented . | . . . . . . . . . . . . . . . . . . . . Parts Restored . | . . . . . . . . . . . . . . . . . . . . Kills | -11 -10 -10 -10 -9 -8 -8 -8 -7 -7 -7 -7 -6 -6 -5 -5 -5 -5 -4 -4 ------- Run | Yrd Mat Min Exi Min Mat Gar Mat Fac Gar Fac Gar Fac Gar Fac Was Fac Gar Fac Arm Combat Hostiles Destroyed 258 | . 15 . . 5 16 16 17 17 24 4 16 3 25 35 . 8 16 41 . Guns 149 | . 3 . . . 15 15 16 15 10 . 9 1 8 25 . 8 12 12 . Cannons 93 | . 12 . . . 1 1 1 . 12 4 7 2 16 6 . . 4 27 . AOE 13 | . . . . 5 . . . 2 2 . . . . 4 . . . . . Classes Destroyed 18 | 2 6 . . 1 3 1 2 . . . 1 . . . . . 1 1 . Worker 14 | . 1 . . . . . 2 4 . . . . . 6 . . . 1 . Builder 11 | . . . . . . . 2 2 . . . . . 3 . . . 4 . Tunneler 3 | 2 . 1 . . . . . . . . . . . . . . . . . Hauler 11 | . 2 . . . 5 . 1 2 . . . . . 1 . . . . . Recycler 18 | 1 . . . . 4 . . 1 . 1 . . . 1 . 1 . 9 . Operator 3 | . 2 . . . . . . . . . . . . . . 1 . . . Watcher 8 | . 3 . . . 1 . . . . 1 . . . 3 . . . . . Swarmer 56 | . 3 . . . 4 4 4 5 10 . 3 . 7 4 . 4 . 8 . Cutter 6 | . . . . . . . . . . . 2 . 4 . . . . . . Grunt 109 | . 12 . . . 7 8 9 6 9 2 7 2 6 11 . 2 14 14 . Brawler 6 | . . . . . . . 1 . . 1 1 . . 2 . 1 . . . Duelist 5 | . . . . . 1 . 2 1 . . 1 . . . . . . . . Sentry 15 | . . . . . 2 . 1 . 2 1 . . 7 . . . . 2 . Hunter 21 | . . . . . 2 1 . 3 2 . 1 . . 3 . 1 1 7 . Programmer 33 | . . . . . . 3 . 2 1 . 1 1 1 15 . . . 9 . Heavy 1 | . . . . . . . . . . . . . . . . . . 1 . Behemoth 1 | . . . . . . . . . . . . . . . . . 1 . . Assembled 5 | . . . . 5 . . . . . . . . . . . . . . . Best Kill Streak 11 | 2 4 1 . 5 7 7 11 5 9 2 7 2 6 7 . 4 6 6 . Combat Bots Only 10 | . 4 . . 5 4 7 10 4 9 2 7 2 6 6 . 4 6 5 . Max Kills in Single Turn 3 | 1 1 1 . 2 2 1 2 3 2 1 1 1 1 2 . 2 1 2 . Gunslinging 1 | . . . . . 1 . . 1 . . . . . . . . . . . Exploded 2 | . . . . 2 . . . 2 2 . . . . 2 . . . . . Melee . | . . . . . . . . . . . . . . . . . . . . Uniques/NPCs Destroyed . | . . . . . . . . . . . . . . . . . . . . Combat | -11 -10 -10 -10 -9 -8 -8 -8 -7 -7 -7 -7 -6 -6 -5 -5 -5 -5 -4 -4 -------- Run | Yrd Mat Min Exi Min Mat Gar Mat Fac Gar Fac Gar Fac Gar Fac Was Fac Gar Fac Arm Hostile Shots Fired 1867 | . 69 . . 43 95 100 83 142 151 95 65 5 162 215 5 38 114 462 23 Missed 548 | . 14 . . 12 21 26 34 34 54 42 18 2 46 65 . 14 17 138 11 Hits 1319 | . 55 . . 31 74 74 49 108 97 53 47 3 116 150 5 24 97 324 12 Melee 51 | . . . . . 7 . 1 14 . . 2 . 16 2 5 2 . 1 1 Projectile 1268 | . 55 . . 31 67 74 48 94 97 53 45 3 100 148 . 22 97 323 11 Critical Strikes 59 | . 1 . . . 5 3 2 7 1 . 2 . 5 7 4 2 8 12 . Part Disruptions 2 | . . . . 1 . . . . . . . . . 1 . . . . . Damage Taken 20069 | . 619 . . 428 1229 882 707 1598 1108 363 712 49 1545 2394 223 355 2037 5643 177 Core 2680 | . 74 . . 57 82 142 16 172 98 40 45 . 96 210 44 37 413 994 160 Absorbed by Shields 1880 | . . . . . . 184 . 254 107 . . . . 789 41 90 195 220 . Reduced by Siege Mode 62 | . . . . . . . . . . . . . 11 . . . 51 . . Redirected to Shielding 102 | . . . . . . . . . . . . . . . . . . 102 . Regen/Repaired (Parts) 234 | . . . . . 95 . . 139 . . . . . . . . . . . Core Remaining (%) 61 | 100 . . . 47 . . 56 . . . 49 . 88 . . . 29 . . Volleys Fired 986 | 6 85 35 . 7 64 68 62 82 70 24 56 13 69 109 2 17 59 158 . Largest 4 | 2 2 2 . 1 3 3 3 3 3 2 3 3 3 4 4 4 4 4 . Hottest 203 | 70 90 90 . 30 103 125 125 79 90 78 100 100 165 165 129 132 132 203 . Shots Fired 2241 | 12 159 36 . 7 192 173 151 200 117 26 120 23 139 322 5 63 140 356 . Gun 1502 | 12 55 . . . 181 156 130 180 49 2 67 10 46 264 4 63 123 160 . Cannon 659 | . 104 36 . . 11 17 6 . 59 23 45 7 84 55 . . 16 196 . Launcher 14 | . . . . 7 . . . 3 1 . . . . 2 1 . . . . Special 66 | . . . . . . . 15 17 8 1 8 6 9 1 . . 1 . . Kinetic 1892 | 6 74 35 . . 181 156 130 180 108 25 112 17 85 290 4 63 139 287 . Thermal 257 | 6 85 1 . . 11 17 6 . . . . . 45 17 . . . 69 . Explosive 14 | . . . . 7 . . . 3 1 . . . . 2 1 . . . . Electromagnetic 12 | . . . . . . . . . . . . . . 12 . . . . . Robot Hit Streak 27 | 3 7 1 . 3 8 9 15 15 23 5 14 4 17 14 2 6 13 27 . Robot Miss Streak 7 | 1 3 1 . . 6 4 3 4 4 3 3 1 3 5 2 7 4 5 . Penetration Max 2 | . . . . . . . 1 1 1 . 1 1 1 1 . 1 1 2 . Secondary Targets 17 | . . . . . 2 6 2 3 . . . . . 2 . 1 1 . . Max Gunslinging Chain 1 | . . . . . 1 1 1 1 . . . . . 1 . 1 1 . . Shots Hit Robots 1322 | 4 85 1 . 2 118 97 102 130 62 18 74 10 84 186 2 30 90 227 . Core Hits 584 | 4 30 1 . 9 48 33 36 46 39 5 29 7 34 93 1 17 38 114 . Critical Kills 12 | . . . . . . . 1 . 1 . . . 2 5 . 2 1 . . Critical Parts Destroyed 12 | . . . . . . . . 4 . . . . 1 3 . 3 1 . . Critical Strikes 56 | . 2 . . . . . 2 4 5 5 . 1 10 10 . 5 2 10 . Burn 3 | . 1 . . . . . . . . . . . . . . . . 2 . Meltdown 1 | . . . . . . . . . . . . . 1 . . . . . . Destroy 24 | . . . . . . . 2 4 1 . . . 2 8 . 5 2 . . Blast 28 | . 1 . . . . . . . 4 5 . 1 7 2 . . . 8 . Melee Attacks 9 | . . . . . . . . . . . 2 . . . . 7 . . . Impact . | . . . . . . . . . . . . . . . . . . . . Slashing 9 | . . . . . . . . . . . 2 . . . . 7 . . . Piercing . | . . . . . . . . . . . . . . . . . . . . Sneak Attacks . | . . . . . . . . . . . . . . . . . . . . Combat Hostiles . | . . . . . . . . . . . . . . . . . . . . Follow-up Attacks . | . . . . . . . . . . . . . . . . . . . . Damage Inflicted 32347 | 66 1239 20 . 219 1884 1834 1763 2513 1868 843 1602 264 2135 5121 183 879 2480 7430 4 Guns 18980 | 66 232 . . . 1764 1784 1659 1988 498 . 727 162 653 3765 45 879 2077 2681 . Cannons 11774 | . 1004 20 . . 120 50 100 . 1278 843 750 102 1482 964 . . 403 4658 . Explosions 1405 | . . . . 219 . . . 513 92 . . . . 392 138 . . 51 . Melee 125 | . . . . . . . . . . . 125 . . . . . . . . Ramming 63 | . 3 . . . . . 4 12 . . . . . . . . . 40 4 Kinetic 27190 | 15 450 20 . . 1764 1784 1659 1988 1776 843 1477 264 1323 4194 45 879 2480 6229 . Thermal 3451 | 51 786 . . . 120 50 100 . . . . . 812 422 . . . 1110 . Explosive 1405 | . . . . 219 . . . 513 92 . . . . 392 138 . . 51 . Electromagnetic 113 | . . . . . . . . . . . . . . 113 . . . . . Impact . | . . . . . . . . . . . . . . . . . . . . Slashing 125 | . . . . . . . . . . . 125 . . . . . . . . Piercing . | . . . . . . . . . . . . . . . . . . . . Highest Corruption 32 | . . . . . . 2 2 2 2 2 1 1 1 18 32 32 32 2 2 Average Corruption 7 | . . . . . . 1 2 1 2 1 1 1 1 11 26 32 32 1 2 Corruption Purged 4 | . . . . . . . . . . 2 . . 2 . . . . . . Corruption Blocked . | . . . . . . . . . . . . . . . . . . . . Effects 257 | . . . . . . 13 9 9 16 1 5 5 1 99 12 34 44 9 . Message Errors 52 | . . . . . . 4 4 . 3 . 2 1 . 19 3 5 9 2 . Matter Fused 63 | . . . . . . 1 2 6 4 . 1 1 1 24 3 9 8 3 . Heat Flow Errors 29 | . . . . . . 1 . 2 . 1 1 1 . 12 1 5 4 1 . Energy Discharges 25 | . . . . . . 2 1 1 2 . 1 . . 9 2 3 4 . . Parts Rejected 5 | . . . . . . 1 . . . . . . . 3 . . 1 . . Parts Fused 2 | . . . . . . 1 . . . . . . . . . 1 . . . Data Loss (minor) 21 | . . . . . . 2 1 . 2 . . 1 . 7 . 4 3 1 . Data Loss (major) 14 | . . . . . . . . . 3 . . 1 . 6 . 2 1 1 . Misfires 7 | . . . . . . . . . 1 . . . . 4 . . 2 . . Alerts 6 | . . . . . . . 1 . 1 . . . . 2 . 1 . 1 . Misdirections 6 | . . . . . . . . . . . . . . 3 3 . . . . Weapon Failures 27 | . . . . . . 1 . . . . . . . 10 . 4 12 . . Overload Shots . | . . . . . . . . . . . . . . . . . . . . Overflow Damage 438 | . 6 . . . . . . 57 78 50 35 . 50 50 . . . 112 . Projectiles 356 | . 6 . . . . . . . 78 50 10 . 50 50 . . . 112 . Explosions 57 | . . . . . . . . 57 . . . . . . . . . . . Melee 25 | . . . . . . . . . . . 25 . . . . . . . . Knockbacks 68 | . 1 . . . . . . . 5 1 5 1 1 6 . . 3 45 . Impact 1 | . . . . . . . . . . . . . . . . . . 1 . Kinetic 57 | . 1 . . . . . . . 3 1 5 1 1 6 . . 3 36 . Secondary 10 | . . . . . . . . . 2 . . . . . . . . 8 . Self-Inflicted Damage 152 | . . . . 15 . . . 37 . . . . . . 37 . . 62 1 Shots 5 | . . . . 1 . . . 2 . . . . . . 1 . . 1 . Rammed 12 | . 1 . . . . . . 1 . . . . . . . . . 8 2 Targets Rammed 13 | . 1 . . . . . 1 1 . . . . . . . . . 8 2 Kicked 1 | . . . . . . . 1 . . . . . . . . . . . . Crushed . | . . . . . . . . . . . . . . . . . . . . Highest Temperature 550 | 70 322 30 . 32 88 227 67 193 26 235 229 93 360 251 66 136 550 259 . Average Temperature 60 | 33 67 17 . 19 15 38 23 83 9 94 27 46 81 53 28 52 126 69 . Received Heat Transfer 4372 | . 312 . . 120 414 287 288 318 213 33 243 9 288 194 . 73 1222 358 . Effects 8 | . . . . . . . . . . . . . 1 1 . . 6 . . Shutdowns 2 | . . . . . . . . . . . . . . . . . 2 . . Energy Bleed 3 | . . . . . . . . . . . . . 1 1 . . 1 . . Short Circuit 1 | . . . . . . . . . . . . . . . . . 1 . . Damage (major) 1 | . . . . . . . . . . . . . . . . . 1 . . Damage (core) 1 | . . . . . . . . . . . . . . . . . 1 . . Siege Activations 3 | . . . . . . . . . . . . . 2 . . . 1 . . Total Turns 54 | . . . . . . . . . . . . . 21 . . . 33 . . Longest Duration 33 | . . . . . . . . . . . . . 14 . . . 33 . . Martial Activations . | . . . . . . . . . . . . . . . . . . . . Shielding Activations . | . . . . . . . . . . . . . . . . . . . . Robots Disrupted . | . . . . . . . . . . . . . . . . . . . . Combat Hostiles . | . . . . . . . . . . . . . . . . . . . . Robots Corrupted 1 | . . . . . . . . . . . . . . . . . . 1 . Combat Hostiles 1 | . . . . . . . . . . . . . . . . . . 1 . Parts Fried . | . . . . . . . . . . . . . . . . . . . . Impact Corruptions 1 | . . . . . . . . . . . . . . . . . . 1 . Robots Melted 2 | . . . . . . . . . . . . . 1 . . . . 1 . Combat Hostiles 2 | . . . . . . . . . . . . . 1 . . . . 1 . Parts Melted 5 | . 2 . . . . . . . . . . . 1 . . . . 2 . Heat Transferred 5684 | 148 1776 . . . 259 74 148 . . . . . 851 407 . . . 2021 . Parts Sabotaged 3 | . . . . . . . . . . . . . . . . . . . 3 Parts Stolen . | . . . . . . . . . . . . . . . . . . . . Parts Stripped . | . . . . . . . . . . . . . . . . . . . . Power Chain Reactions . | . . . . . . . . . . . . . . . . . . . . Alert | -11 -10 -10 -10 -9 -8 -8 -8 -7 -7 -7 -7 -6 -6 -5 -5 -5 -5 -4 -4 ------- Run | Yrd Mat Min Exi Min Mat Gar Mat Fac Gar Fac Gar Fac Gar Fac Was Fac Gar Fac Arm Maximum Alert Level 3 | . . . . . . 2 3 1 3 2 3 2 3 3 1 1 2 3 1 Low Security (%) 34 | 100 100 100 . 100 100 19 . 53 3 . 5 64 22 . . 77 9 29 . Level 1 28 | . . . . . . 3 36 46 13 57 35 26 23 41 100 22 40 43 100 Level 2 32 | . . . . . . 76 51 . 72 42 44 8 40 49 . . 49 22 . Level 3 4 | . . . . . . . 11 . 10 . 14 . 12 8 . . . 3 . Level 4 . | . . . . . . . . . . . . . . . . . . . . Level 5 . | . . . . . . . . . . . . . . . . . . . . High Security . | . . . . . . . . . . . . . . . . . . . . Max Security . | . . . . . . . . . . . . . . . . . . . . Peak Influence 961 | 10 110 5 . 10 179 649 729 344 754 533 831 436 861 961 340 266 577 731 319 Initial 451 | . . . . . . 65 315 286 187 389 198 436 15 451 334 161 170 287 319 Average 320 | 1 46 . . . 64 425 509 149 523 403 477 177 427 484 302 119 405 322 308 Influence Increases 9555 | 15 529 5 . 15 509 624 729 703 860 305 693 86 906 1308 26 373 517 1337 15 Destroy 0b10 Robot/C 5400 | . 300 . . . 320 320 400 340 480 180 420 60 580 700 . 160 320 820 . Destroy 0b10 Robot/NC 345 | 15 40 5 . . 50 . 25 45 . 10 10 . . 70 . 5 . 70 . Destroy Leader 908 | . 70 . . . 82 40 82 64 30 62 40 20 10 168 . 30 30 180 . Allied During Kill 85 | . . . . . . . 8 . . 29 26 . 22 . . . . . . Successful Hack 106 | . 26 . . . 9 24 . 4 21 . . . 12 . . 5 . 5 . Disable Machine 480 | . 15 . . . 30 . . 30 45 15 . . . 210 . 60 30 45 . Anti-Garrison Action 850 | . . . . . . 150 150 . 150 . 150 . 200 . . . 50 . . Destroy Structure 736 | . 3 . . 15 3 60 4 40 74 9 47 6 67 100 26 68 12 202 . Lose Combat Pursuer 645 | . 75 . . . 15 30 60 180 60 . . . 15 60 . 45 75 15 15 Influence Decreases 9251 | 15 529 5 . 15 409 75 748 1065 386 763 146 895 67 1212 753 359 214 1232 363 Entered New Map 3404 | . . . . . . 35 334 344 81 353 86 395 7 410 623 69 74 260 333 Time Decay 4128 | 15 499 5 . 11 379 . 334 491 . 350 . 350 . 692 80 290 . 612 20 Lost Part 894 | . 30 . . 4 30 40 30 60 30 . 10 . 10 110 50 . 120 360 10 Lost Ally 250 | . . . . . . . 50 20 . 60 50 . 50 . . . 20 . . Purge Threat 575 | . . . . . . . . 150 275 . . 150 . . . . . . . Squads Dispatched 60 | . 3 . . . 3 . 10 13 . 4 . 3 . 12 . 1 . 11 . Investigation 7 | . 1 . . . . . 2 4 . . . . . . . . . . . Extermination 17 | . . . . . . . . 3 . 1 . 2 . 5 . 1 . 5 . Reinforcement 22 | . 2 . . . 2 . 3 3 . . . 1 . 6 . . . 5 . Assault 4 | . . . . . . . 2 . . . . . . 1 . . . 1 . Garrison 10 | . . . . . 1 . 3 3 . 3 . . . . . . . . . Intercept . | . . . . . . . . . . . . . . . . . . . . Searches Triggered . | . . . . . . . . . . . . . . . . . . . . Construction Impeded 5 | . . . . . . . . . . . . . . 2 . . . 3 . Haulers Reinforced 4 | . . . . . . . . 2 . . . . . 1 . . . 1 . Active Scanning Responses . | . . . . . . . . . . . . . . . . . . . . Cargo Convoy Interrupts 1 | . . . . . . . . 1 . . . . . . . . . . . Stealth | -11 -10 -10 -10 -9 -8 -8 -8 -7 -7 -7 -7 -6 -6 -5 -5 -5 -5 -4 -4 --------- Run | Yrd Mat Min Exi Min Mat Gar Mat Fac Gar Fac Gar Fac Gar Fac Was Fac Gar Fac Arm Distress Signals 9 | . 1 . . . 3 . 1 1 . . . . . 1 . . . 1 1 Communications Jammed . | . . . . . . . . . . . . . . . . . . . . Distress Signals . | . . . . . . . . . . . . . . . . . . . . Times Spotted 430 | . 28 . . 20 32 17 34 40 28 13 22 3 31 50 6 9 19 66 12 Peak Tracking Total 19 | . 5 . . 19 6 5 7 5 9 3 5 2 9 6 6 5 6 14 14 Tactical Retreats 31 | . 4 . . . 1 1 3 8 2 . . . 1 4 . 3 2 1 1 Traps | -11 -10 -10 -10 -9 -8 -8 -8 -7 -7 -7 -7 -6 -6 -5 -5 -5 -5 -4 -4 ------- Run | Yrd Mat Min Exi Min Mat Gar Mat Fac Gar Fac Gar Fac Gar Fac Was Fac Gar Fac Arm Traps Triggered 18 | . 1 . . . . 5 . 5 2 . . . 1 2 . . 2 . . Indirectly . | . . . . . . . . . . . . . . . . . . . . Trap Hack Attempts . | . . . . . . . . . . . . . . . . . . . . Triggered . | . . . . . . . . . . . . . . . . . . . . Disarmed . | . . . . . . . . . . . . . . . . . . . . Reprogrammed . | . . . . . . . . . . . . . . . . . . . . Reused . | . . . . . . . . . . . . . . . . . . . . Traps Extracted . | . . . . . . . . . . . . . . . . . . . . Installed . | . . . . . . . . . . . . . . . . . . . . Triggered . | . . . . . . . . . . . . . . . . . . . . Machines | -11 -10 -10 -10 -9 -8 -8 -8 -7 -7 -7 -7 -6 -6 -5 -5 -5 -5 -4 -4 ---------- Run | Yrd Mat Min Exi Min Mat Gar Mat Fac Gar Fac Gar Fac Gar Fac Was Fac Gar Fac Arm Machines Disabled 38 | . 1 . . . 2 1 1 2 4 1 1 . 1 14 . 4 3 3 . Max in Single Turn 4 | . 1 . . . 1 1 . 1 1 1 1 . 1 4 . 4 1 1 . Garrison Access 3 | . . . . . . . 1 . . 1 . . . 1 . . . . . Garrison Relay 5 | . . . . . . 1 . . 1 . 1 . 1 . . . 1 . . Machines Repaired . | . . . . . . . . . . . . . . . . . . . . Machines Dismantled . | . . . . . . . . . . . . . . . . . . . . Machines Sabotaged . | . . . . . . . . . . . . . . . . . . . . Overloaded Fab Kills . | . . . . . . . . . . . . . . . . . . . . Hacking | -11 -10 -10 -10 -9 -8 -8 -8 -7 -7 -7 -7 -6 -6 -5 -5 -5 -5 -4 -4 --------- Run | Yrd Mat Min Exi Min Mat Gar Mat Fac Gar Fac Gar Fac Gar Fac Was Fac Gar Fac Arm Machines Accessed 47 | . 6 . 2 . 6 2 1 8 3 4 1 4 2 3 . 2 1 2 . Terminals 30 | . 6 . . . 3 2 1 6 3 1 1 . 2 2 . 1 1 1 . Fabricators 1 | . . . . . . . . . . . . . . . . . . 1 . Repair Stations 4 | . . . . . 2 . . 1 . . . 1 . . . . . . . Recycling Units . | . . . . . . . . . . . . . . . . . . . . Scanalyzers 2 | . . . . . . . . . . 1 . 1 . . . . . . . Garrison Access 8 | . . . . . 1 . . 1 . 2 . 2 . 1 . 1 . . . Total Hacks 105 | . 20 . 5 . 15 4 1 16 4 10 2 7 8 3 . 5 1 4 . Successful 54 | . 11 . 5 . 9 2 . 7 2 7 1 3 1 1 . 4 . 1 . Failed 51 | . 9 . . . 6 2 1 9 2 3 1 4 7 2 . 1 1 3 . Catastrophic 10 | . . . . . 1 . 1 3 . . . . 2 1 . . 1 1 . Database Lockouts . | . . . . . . . . . . . . . . . . . . . . Manual 39 | . 18 . 1 . 8 . 1 3 . 2 1 1 1 . . 3 . . . Terminals 68 | . 20 . . . 8 4 1 11 4 2 2 . 8 2 . 3 1 2 . Fabricators 2 | . . . . . . . . . . . . . . . . . . 2 . Repair Stations 10 | . . . . . 5 . . 3 . . . 2 . . . . . . . Recycling Units . | . . . . . . . . . . . . . . . . . . . . Scanalyzers 7 | . . . . . . . . . . 5 . 2 . . . . . . . Garrison Access 13 | . . . . . 2 . . 2 . 3 . 3 . 1 . 2 . . . Terminal Hacks 18 | . 2 . 5 . . 2 . 3 2 . 1 . 1 . . 1 . 1 . Record 4 | . . . 4 . . . . . . . . . . . . . . . . Robot Analysis 1 | . 1 . . . . . . . . . . . . . . . . . . Prototype ID Bank 2 | . 1 . . . . . . 1 . . . . . . . . . . . Open Door 1 | . . . . . . . . . 1 . . . . . . . . . . Open DSF 1 | . . . . . . . . 1 . . . . . . . . . . . Emergency Access Points 4 | . . . . . . 1 . . 1 . 1 . 1 . . . . . . Terminal Index 1 | . . . . . . . . 1 . . . . . . . . . . . Locate Traps 1 | . . . . . . . . . . . . . . . . 1 . . . Zone Layout 1 | . . . . . . . . . . . . . . . . . . 1 . Patrol Navigation 1 | . . . . . . 1 . . . . . . . . . . . . . Proto ID Catalog 1 | . . . 1 . . . . . . . . . . . . . . . . Fabricator Hacks . | . . . . . . . . . . . . . . . . . . . . Repair Station Hacks 7 | . . . . . 4 . . 2 . . . 1 . . . . . . . Scan Component 4 | . . . . . 2 . . 1 . . . 1 . . . . . . . Repair 3 | . . . . . 2 . . 1 . . . . . . . . . . . Recycling Unit Hacks . | . . . . . . . . . . . . . . . . . . . . Scanalyzer 4 | . . . . . . . . . . 4 . . . . . . . . . Retrieve Study 4 | . . . . . . . . . . 4 . . . . . . . . . Garrison Access Hacks 10 | . . . . . 1 . . 2 . 3 . 2 . 1 . 1 . . . Unlock Access 6 | . . . . . 1 . . 1 . 1 . 2 . . . 1 . . . Seal Access 2 | . . . . . . . . . . 1 . . . 1 . . . . . Coupler Status 2 | . . . . . . . . 1 . 1 . . . . . . . . . Unauthorized Hacks 15 | . 9 . . . 4 . . . . . . . . . . 2 . . . Terminals 15 | . 9 . . . 4 . . . . . . . . . . 2 . . . Assimilate 1 | . . . . . . . . . . . . . . . . 1 . . . Botnet 4 | . 2 . . . 1 . . . . . . . . . . 1 . . . Disrupt 1 | . . . . . 1 . . . . . . . . . . . . . . Operators 1 | . 1 . . . . . . . . . . . . . . . . . . Skim 8 | . 6 . . . 2 . . . . . . . . . . . . . . Fabricators . | . . . . . . . . . . . . . . . . . . . . Repair Stations . | . . . . . . . . . . . . . . . . . . . . Recycling Units . | . . . . . . . . . . . . . . . . . . . . Scanalyzers . | . . . . . . . . . . . . . . . . . . . . Garrison Access . | . . . . . . . . . . . . . . . . . . . . Data Cores Recovered . | . . . . . . . . . . . . . . . . . . . . Used . | . . . . . . . . . . . . . . . . . . . . Hacking Detections 39 | . 6 . . . 5 2 1 7 2 3 1 4 2 2 . 2 1 1 . Full Trace Events 2 | . . . . . . . . 1 . . . . 1 . . . . . . Feedback Events . | . . . . . . . . . . . . . . . . . . . . Feedback Blocked . | . . . . . . . . . . . . . . . . . . . . Robot Schematics Acquired . | . . . . . . . . . . . . . . . . . . . . Robots Built . | . . . . . . . . . . . . . . . . . . . . Authchips . | . . . . . . . . . . . . . . . . . . . . Time . | . . . . . . . . . . . . . . . . . . . . Total Robot Build Rating . | . . . . . . . . . . . . . . . . . . . . Part Schematics Acquired . | . . . . . . . . . . . . . . . . . . . . Parts Built . | . . . . . . . . . . . . . . . . . . . . Authchips . | . . . . . . . . . . . . . . . . . . . . Time . | . . . . . . . . . . . . . . . . . . . . Total Part Build Rating . | . . . . . . . . . . . . . . . . . . . . Part Studies Acquired 3 | . . . . . . . . . . 3 . . . . . . . . . Parts Repaired 2 | . . . . . 1 . . 1 . . . . . . . . . . . Time 164 | . . . . . 120 . . 44 . . . . . . . . . . . Parts Recycled . | . . . . . . . . . . . . . . . . . . . . Recycled Matter . | . . . . . . . . . . . . . . . . . . . . Retrieved Matter . | . . . . . . . . . . . . . . . . . . . . Retrieved Components . | . . . . . . . . . . . . . . . . . . . . Parts Scanalyzed . | . . . . . . . . . . . . . . . . . . . . Part Schematics Acquired . | . . . . . . . . . . . . . . . . . . . . Parts Damaged . | . . . . . . . . . . . . . . . . . . . . Bothacking | -11 -10 -10 -10 -9 -8 -8 -8 -7 -7 -7 -7 -6 -6 -5 -5 -5 -5 -4 -4 ------------ Run | Yrd Mat Min Exi Min Mat Gar Mat Fac Gar Fac Gar Fac Gar Fac Was Fac Gar Fac Arm Used RIF Installer 5 | . . . . . . 1 . . 1 . 1 . 1 . . . 1 . . Command Fork 2 | . . . . . . . . . . . . . 1 . . . 1 . . Robot Detection 1 | . . . . . . . . . . . 1 . . . . . . . . Patrol Navigation 1 | . . . . . . . . . 1 . . . . . . . . . . Robots Hacked 29 | . . . . . . . 8 8 1 1 3 1 6 1 . . . . . Non-combat 13 | . . . . . . . 2 7 1 . 1 1 . 1 . . . . . Combat 16 | . . . . . . . 6 1 . 1 2 . 6 . . . . . . Robot Hacks Applied 33 | . . . . . . . 8 9 3 1 3 2 6 1 . . . . . parse_system 1 | . . . . . . . . 1 . . . . . . . . . . . find_chute 1 | . . . . . . . . 1 . . . . . . . . . . . map_walls 2 | . . . . . . . 1 1 . . . . . . . . . . . purge_threat 4 | . . . . . . . . 1 2 . . 1 . . . . . . . locate_traps 1 | . . . . . . . . . 1 . . . . . . . . . . map_route 4 | . . . . . . . . 3 . . . . . 1 . . . . . overload_power 1 | . . . . . . . 1 . . . . . . . . . . . . amplify_resonance 2 | . . . . . . . . . . . . . 2 . . . . . . disable_weapons 1 | . . . . . . . 1 . . . . . . . . . . . . overwrite_iff 5 | . . . . . . . 2 . . 1 . . 2 . . . . . . formatsys_low 5 | . . . . . . . 1 2 . . 1 1 . . . . . . . formatsys_high 6 | . . . . . . . 2 . . . 2 . 2 . . . . . . Relay Couplers Released 28 | . . . . . . 3 4 3 5 . 5 . 5 . . . 3 . . Machine Destruction 25 | . . . . . . 3 4 . 5 . 5 . 5 . . . 3 . . Programmers 3 | . . . . . . . . 3 . . . . . . . . . . . Attached 13 | . . . . . . . 3 1 1 1 2 . 4 1 . . . . . Fabnet Peak Effective % . | . . . . . . . . . . . . . . . . . . . . Robots Rewired 3 | . . . . . . . . . 2 . . . . . . . 1 . . Allies Hacked . | . . . . . . . . . . . . . . . . . . . . Hacks Repelled . | . . . . . . . . . . . . . . . . . . . . Allies | -11 -10 -10 -10 -9 -8 -8 -8 -7 -7 -7 -7 -6 -6 -5 -5 -5 -5 -4 -4 -------- Run | Yrd Mat Min Exi Min Mat Gar Mat Fac Gar Fac Gar Fac Gar Fac Was Fac Gar Fac Arm Total Allies 22 | . . . . 2 . . 5 2 2 1 3 1 4 . . 1 1 . . Largest Group 3 | . . . . 2 1 . 2 1 2 3 3 1 2 . . 1 1 . . Highest-Rated Group 116 | . . . . 50 19 . 43 26 70 102 87 26 61 . . 10 116 . . Highest-Rated Ally 116 | . . . . 31 19 . 29 26 39 39 32 26 32 . . 10 116 . . Total Orders 8 | . . . . . . . . 1 . . 4 2 . . . 1 . . . STAY 4 | . . . . . . . . . . . 2 1 . . . 1 . . . FOLLOW 1 | . . . . . . . . . . . . 1 . . . . . . . AID 3 | . . . . . . . . 1 . . 2 . . . . . . . . Ally Attacks 101 | . . . . 2 . . 30 . . 28 15 . 23 . . . 3 . . Total Damage 2165 | . . . . . . . 480 . . 333 590 . 494 . . . 268 . . Kills 17 | . . . . . . . 3 . . 5 5 . 4 . . . . . . Allies Corrupted 2 | . . . . . . . . . . 1 1 . . . . . . . . Allies Melted . | . . . . . . . . . . . . . . . . . . . . Intel | -11 -10 -10 -10 -9 -8 -8 -8 -7 -7 -7 -7 -6 -6 -5 -5 -5 -5 -4 -4 ------- Run | Yrd Mat Min Exi Min Mat Gar Mat Fac Gar Fac Gar Fac Gar Fac Was Fac Gar Fac Arm Active Infowar (turns) 4712 | 9 1062 136 428 64 . . . . . . 1221 101 . . . . . 1691 . Seismic 1699 | 9 1062 136 428 64 . . . . . . . . . . . . . . . T.N.C. 1691 | . . . . . . . . . . . . . . . . . . 1691 . Jamming 1322 | . . . . . . . . . . . 1221 101 . . . . . . . Robot Analysis Total 1 | . 1 . . . . . . . . . . . . . . . . . . Derelict Logs Recovered . | . . . . . . . . . . . . . . . . . . . . Drone Launches . | . . . . . . . . . . . . . . . . . . . . Drone Recoveries . | . . . . . . . . . . . . . . . . . . . . Exploration | -11 -10 -10 -10 -9 -8 -8 -8 -7 -7 -7 -7 -6 -6 -5 -5 -5 -5 -4 -4 ------------- Run | Yrd Mat Min Exi Min Mat Gar Mat Fac Gar Fac Gar Fac Gar Fac Was Fac Gar Fac Arm Turns Passed 19993 | 87 1490 228 428 367 1229 1686 743 1923 1339 782 1238 792 1301 2829 168 641 668 2006 48 Spaces Moved 10364 | 53 944 125 310 280 488 746 310 1473 568 417 637 447 636 1422 110 380 234 696 88 Core 192 | 9 . . . . . . . . . . . . . . . . . 95 88 Treads 3835 | 10 147 . . . . . . . 348 417 637 447 636 468 . . 167 558 . Legs 1410 | . . . . . 416 746 205 . . . . . . . . . . 43 . Wheels 4927 | 34 797 125 310 280 72 . 105 1473 220 . . . . 954 110 380 67 . . Hover . | . . . . . . . . . . . . . . . . . . . . Flight . | . . . . . . . . . . . . . . . . . . . . Fastest Speed 50 | 50 95 125 125 110 110 200 115 100 115 163 163 165 162 145 130 130 145 50 50 Average Speed 157 | 99 122 125 125 117 186 200 171 106 191 163 163 165 164 171 145 133 197 213 50 Slowest Speed 260 | 160 240 125 125 125 200 200 200 115 250 166 165 165 245 240 160 145 243 260 50 Overloaded Moves . | . . . . . . . . . . . . . . . . . . . . Propulsion Burnouts . | . . . . . . . . . . . . . . . . . . . . Robots Hopped . | . . . . . . . . . . . . . . . . . . . . Potential Cave-ins . | . . . . . . . . . . . . . . . . . . . . Cave-ins Triggered . | . . . . . . . . . . . . . . . . . . . . Exploration Rate (%) 41 | 4 98 26 65 65 34 72 34 31 63 13 64 19 66 32 77 9 35 16 12 Regions Visited 19 Branch Regions 4 Pre-discovered Areas 3 | . 1 . 1 1 . . . . . . . . . . . . . . . Known Exits Taken 6 | . . 1 . . 1 . . 1 . 1 . 1 . . . 1 . . . Unknown Exits Taken 6 | 1 1 . 1 1 . . 1 . . . . . . . . . . 1 . Scrap Searched 1 | . . . . 1 . . . . . . . . . . . . . . . Spaces Dug 32 | . . . . 11 . . . 7 . . . 3 . . . 8 . 3 . Terrain Destroyed 358 | . . . . 18 . . 1 38 10 4 12 6 21 53 16 45 5 129 . Melee 7 | . . . . . . . . . . . . . . . . 7 . . . Projectile 161 | . . . . . . . 1 1 9 4 12 6 21 21 . 9 4 73 . AOE 186 | . . . . 18 . . . 37 1 . . . . 31 16 28 . 55 . Terrain Rammed . | . . . . . . . . . . . . . . . . . . . . Walls Destroyed . | . . . . . . . . . . . . . . . . . . . . Machines Disabled . | . . . . . . . . . . . . . . . . . . . . Actions | -11 -10 -10 -10 -9 -8 -8 -8 -7 -7 -7 -7 -6 -6 -5 -5 -5 -5 -4 -4 --------- Run | Yrd Mat Min Exi Min Mat Gar Mat Fac Gar Fac Gar Fac Gar Fac Was Fac Gar Fac Arm Total 12539 | 73 1124 161 350 310 710 872 428 1674 709 480 743 488 773 1636 115 469 350 983 91 Wait 598 | . 68 . 39 18 83 16 14 69 13 19 23 16 33 50 1 45 17 74 . Move 10343 | 52 943 124 309 279 487 744 309 1472 566 417 635 447 634 1422 109 379 232 695 88 Hop . | . . . . . . . . . . . . . . . . . . . . Pick Up 133 | 7 11 1 2 1 23 10 12 11 7 5 5 2 5 16 . 5 7 3 . Fast Attach 89 | 6 2 . . . 8 1 2 4 9 1 2 2 9 10 . 1 12 19 1 Attach 100 | 1 2 1 . 2 12 6 8 9 6 . 6 3 4 12 2 8 5 13 . Detach 12 | . . . . . 2 . 1 . 3 . . 1 1 . . 1 . 3 . Swap 89 | . 5 . . 1 10 2 5 13 10 8 9 1 7 7 1 5 4 1 . Drop 125 | 1 7 . . 2 21 5 14 13 11 6 5 3 11 10 . 1 6 9 . Fire 986 | 6 85 35 . 7 64 68 62 82 70 24 56 13 69 109 2 17 59 158 . Melee 9 | . . . . . . . . . . . 2 . . . . 7 . . . Ram 6 | . . . . . . . . 1 . . . . . . . . . 3 2 Kick 1 | . . . . . . . 1 . . . . . . . . . . . . Crush 6 | . 1 . . . . . . . . . . . . . . . . 5 . Escape Stasis 36 | . . . . . . 20 . . 8 . . . . . . . 8 . . Rewire 6 | . . . . . . . . . 6 . . . . . . . . . . Trap . | . . . . . . . . . . . . . . . . . . . . Miscellaneous . | . . . . . . . . . . . . . . . . . . . . Route ------- -11/Scrapyard -10/Materials (discovered 5 exits: *Mat x3 / [*Min] / Sub) -10/Mines (discovered 2 exits: Mat / *Exi) -10/Exiles -9/Mines -8/Materials (discovered 3 exits: *Fac / [*Sto] / Gar) -8/Garrison (discovered 2 exits: *Mat x2) -8/Materials (discovered 2 exits: *Fac / [*Sto]) -7/Factory (discovered 3 exits: *Fac x2 / Gar) -7/Garrison (discovered 2 exits: *Fac x2) -7/Factory (discovered 3 exits: *Fac / [*Low] / Gar) -7/Garrison (discovered 3 exits: *Fac x3) -6/Factory (discovered 2 exits: Gar / Gar) -6/Garrison (discovered 2 exits: *Fac x2) -5/Factory -5/Waste -5/Factory -5/Garrison -4/Factory -4/Armory History --------- Turn | Location | Event 9 | -11/Scrapyard | Discovered new exit (range 15) 88 | -11/Scrapyard | Entered Materials 303 | -10/Materials | Build established: Mutant 461 | -10/Materials | Discovered new exit (range 15) 992 | -10/Materials | Discovered new exit (range 6) 1278 | -10/Materials | Learned location of Mines (-10) 1356 | -10/Materials | Discovered new exit (range 8) 1358 | -10/Materials | Learned location of 2 exits from Subcaves 1427 | -10/Materials | Learned location of 2 exits from Subcaves 1441 | -10/Materials | Discovered new exit (range 15) 1488 | -10/Materials | Identified exit to Subcaves 1539 | -10/Materials | Learned location of 2 exits from Mines 1578 | -10/Materials | Entered Mines 1579 | -10/Mines | Identified exit to Materials 1579 | -10/Mines | Identified exit to Exiles 1698 | -10/Mines | Deemed a non-threat by the Exiles lab entrance 1717 | -10/Mines | Excavation squad dispatched 1717 | -10/Mines | A large section of the Mines collapsed 1806 | -10/Mines | Entered Exiles 1839 | -10/Exiles | Met 8R-AWN 1860 | -10/Exiles | Met EX-HEX 1896 | -10/Exiles | Met EX-BIN 1915 | -10/Exiles | Met EX-DEC 1921 | -10/Exiles | Learned location of Zion (-6) 1981 | -10/Exiles | Aligned with FarCom system 1983 | -10/Exiles | Given EX-Vault access code 2013 | -10/Exiles | Opened EX-Vault 2021 | -10/Exiles | Found Modified TNC 2046 | -10/Exiles | Warned to stay clear of 0b10 Research branches 2065 | -10/Exiles | Exiles lab attacked by MAIN.C 2173 | -10/Exiles | Discovered new exit (range 14) 2234 | -10/Exiles | Left Exiles lab with Modified TNC 2234 | -10/Exiles | Entered Mines 2317 | -9/Mines | Discovered new exit (range 5) 2318 | -9/Mines | Learned location of Storage (-8) 2384 | -9/Mines | Assembled infested the area 2389 | -9/Mines | Assisted by a Guerilla fighting off Assembled 2430 | -9/Mines | Core integrity fell below 50% 2601 | -9/Mines | Entered Materials 2601 | -8/Materials | Accompanied by 1 ally 2601 | -8/Materials | Evolved 4 slots: Propulsion x1, Utility x2, Weapon x1 2605 | -8/Materials | Discovered new exit (range 15) 2942 | -8/Materials | Build established: Skirmisher 3464 | -8/Materials | Repaired Enh. Autogun? 3489 | -8/Materials | Build established: Tank 3595 | -8/Materials | Discovered new exit (range 13) 3803 | -8/Materials | Identified exit to Garrison 3808 | -8/Materials | Garrison activated, responded to threat 3830 | -8/Materials | Entered Garrison 3954 | -8/Garrison | Triggered checkpoint 4005 | -8/Garrison | Garrison Relay disabled 4144 | -8/Garrison | Triggered checkpoint 4164 | -8/Garrison | Triggered checkpoint 4189 | -8/Garrison | Destroyed 7 combat bots 4437 | -8/Garrison | Discovered new exit (range 13) 4852 | -8/Garrison | Discovered new exit (range 13) 5072 | -8/Garrison | Build established: Skirmisher 5096 | -8/Garrison | Triggered checkpoint 5480 | -8/Garrison | Installed Relay Interface Framework 5516 | -8/Garrison | Entered Materials 5585 | -8/Materials | Garrison activated, responded to threat 5788 | -8/Materials | Build established: Bothacker-Skirmisher 5939 | -8/Materials | Destroyed 10 combat bots 5948 | -8/Materials | Lost 3 parts (1n2w) 6057 | -8/Materials | Met 7R-MNS 6079 | -8/Materials | Discovered new exit (range 10) 6196 | -8/Materials | Build established: Scavenger-Skirmisher 6241 | -8/Materials | Discovered new exit (range 15) 6259 | -8/Materials | Entered Factory 6259 | -7/Factory | Evolved 2 slots: Propulsion x1, Utility x1 6260 | -7/Factory | Caught up to 7R-MNS 6283 | -7/Factory | Identified exit to DSF 6355 | -7/Factory | Garrison activated, responded to threat 6791 | -7/Factory | Build established: Bothacker-Gunner 7055 | -7/Factory | Discovered new exit (range 16) 7225 | -7/Factory | Identified exit to Garrison 7460 | -7/Factory | Build established: Gunner 7720 | -7/Factory | Lost 4 parts (2p1u1w) 7912 | -7/Factory | Repaired Gauss Rifle? 7913 | -7/Factory | Discovered new exit (range 24) 8089 | -7/Factory | Cargo convoy interrupted 8182 | -7/Factory | Entered Garrison 8369 | -7/Garrison | Triggered checkpoint 8384 | -7/Garrison | Triggered checkpoint 8422 | -7/Garrison | Lost 3 parts (2n1w) 8437 | -7/Garrison | Destroyed 9 combat bots 8499 | -7/Garrison | H-XX Assembler disabled 8627 | -7/Garrison | Discovered new exit (range 6) 8694 | -7/Garrison | Triggered checkpoint 8819 | -7/Garrison | Expanded RIF knowledge: Patrol Navigation 8842 | -7/Garrison | Garrison Relay disabled 9139 | -7/Garrison | Build established: Bothacker-Tank 9222 | -7/Garrison | Triggered checkpoint 9364 | -7/Garrison | Triggered checkpoint 9455 | -7/Garrison | Discovered new exit (range 11) 9521 | -7/Garrison | Entered Factory 9521 | -7/Factory | Accompanied by 2 allies 9873 | -7/Factory | Discovered new exit (range 15) 10059 | -7/Factory | Build established: Tank 10099 | -7/Factory | Discovered new exit (range 8) 10303 | -7/Factory | Identified exit to Garrison 10303 | -7/Factory | Entered Garrison 10489 | -7/Garrison | Triggered checkpoint 10568 | -7/Garrison | Garrison Relay disabled 11020 | -7/Garrison | Discovered new exit (range 8) 11096 | -7/Garrison | Build established: Bothacker-Tank 11103 | -7/Garrison | Triggered checkpoint 11182 | -7/Garrison | Discovered new exit (range 13) 11306 | -7/Garrison | Triggered checkpoint 11368 | -7/Garrison | Core integrity fell below 50% 11388 | -7/Garrison | Destroyed 7 combat bots 11435 | -7/Garrison | Expanded RIF knowledge: Robot Detection 11446 | -7/Garrison | Discovered new exit (range 12) 11541 | -7/Garrison | Entered Factory 11541 | -6/Factory | Evolved 2 slots: Propulsion x1, Weapon x1 11913 | -6/Factory | Identified exit to Garrison 11950 | -6/Factory | Build established: Scavenger-Tank 12331 | -6/Factory | Identified exit to Garrison 12333 | -6/Factory | Entered Garrison 12333 | -6/Garrison | Accompanied by 1 ally 12446 | -6/Garrison | Found Relay Coupler [Proto] 12585 | -6/Garrison | Triggered checkpoint 12625 | -6/Garrison | Garrison Relay disabled 12899 | -6/Garrison | Triggered checkpoint 12908 | -6/Garrison | Triggered checkpoint 12916 | -6/Garrison | Triggered checkpoint 13076 | -6/Garrison | Discovered new exit (range 8) 13103 | -6/Garrison | Triggered checkpoint 13506 | -6/Garrison | Expanded RIF knowledge: Command Fork 13577 | -6/Garrison | Discovered new exit (range 3) 13634 | -6/Garrison | Entered Factory 13634 | -5/Factory | Evolved 2 slots: Power x1, Utility x1 14244 | -5/Factory | Build established: Scavenger-Gunner 14541 | -5/Factory | Lost 5 parts (1p1n1u2w) 14792 | -5/Factory | Build established: Scavenger-Tank 14931 | -5/Factory | System corruption reached 10% 14961 | -5/Factory | Lost 4 parts (1n1u2w) 15326 | -5/Factory | Build established: Tank 15734 | -5/Factory | First assault squad dispatched 16358 | -5/Factory | Discovered new exit (range 8) 16463 | -5/Factory | Sucked down chute 16463 | -5/Factory | Entered Waste 16478 | -5/Waste | EMP discharged 16499 | -5/Waste | Spotted C-40 Crusher 16500 | -5/Waste | Spotted C-40 Crusher 16502 | -5/Waste | Spotted C-40 Crusher 16548 | -5/Waste | Spotted C-40 Crusher 16556 | -5/Waste | Crushed by Compactor (1 part destroyed, 2 dropped) 16573 | -5/Waste | Spotted C-40 Crusher 16578 | -5/Waste | EMP discharged 16578 | -5/Waste | System corruption reached 30% 16590 | -5/Waste | Crushed by Compactor (1 part destroyed, 1 dropped) 16593 | -5/Waste | Crushed by Compactor (1 part destroyed, 1 dropped) 16594 | -5/Waste | Crushed by Compactor (1 part destroyed) 16596 | -5/Waste | Crushed by Compactor (0 parts destroyed, 1 dropped) 16599 | -5/Waste | Spotted C-40 Crusher 16619 | -5/Waste | Discovered new exit (range 10) 16627 | -5/Waste | Lost 4 parts (1n1u2w) 16631 | -5/Waste | Entered Factory 16926 | -5/Factory | Build established: Gunner 17267 | -5/Factory | Identified exit to Garrison 17272 | -5/Factory | Entered Garrison 17329 | -5/Garrison | Triggered checkpoint 17373 | -5/Garrison | Garrison Relay disabled 17517 | -5/Garrison | Spotted B-75 Beast 17555 | -5/Garrison | Destroyed B-75 Beast 17582 | -5/Garrison | Core integrity fell below 50% 17609 | -5/Garrison | Lost 7 parts (2p2n1u2w) 17657 | -5/Garrison | Triggered checkpoint 17784 | -5/Garrison | Expanded RIF knowledge: Command Fork 17905 | -5/Garrison | Discovered new exit (range 11) 17911 | -5/Garrison | Rewired B-86 Titan 17912 | -5/Garrison | Spotted B-90 Cyclops 17917 | -5/Garrison | Spotted B-86 Titan 17940 | -5/Garrison | Entered Factory 17940 | -4/Factory | Evolved 2 slots: Propulsion x1, Utility x1 18096 | -4/Factory | Build established: Scavenger-Gunner 19041 | -4/Factory | Lost 8 parts (1p3n1u3w) 19290 | -4/Factory | Lost 3 parts (1p1n1u) 19459 | -4/Factory | Lost 5 parts (1p1n1u2w) 19690 | -4/Factory | First assault squad dispatched 19843 | -4/Factory | Lost 8 parts (1p2n2u3w) 19899 | -4/Factory | Core integrity fell below 50% 19927 | -4/Factory | Lost 7 parts (2p2n2u1w) 19941 | -4/Factory | Discovered new exit (range 12) 19945 | -4/Factory | Core integrity fell below 20% 19946 | -4/Factory | Entered Armory 19994 | -4/Armory | Destroyed by S-27 Virus with Autogun Last Messages --------------- detected, Programmers report to Factory Zone 5V. 19941_ EXIT=FOUND 19941_ Machine disabled. 19941_ K-01 Serf collects debris. 19944_ Penetrated by Slug. 19946_ K-01 Serf cleans the Machine. 19946_ Penetrated by Slug. LOCATION=UNKNOWN GOAL=ESCAPE 19946_ Receiving FarCom transmissions... 19960_ W-44 Eye sends out distress signal. 19975_ Acquired Imp. System Shield. 19976_ Imp. System Shield destroyed. 19985_ Adv. Coolant Injector blown off. 19985_ Modified TNC blown off. 19985_ Adv. Targeting Computer blown off. 19985_ E-15 Imp destroyed. 19992_ Slammed into S-27 Virus. 19993_ Destabilizing: Core damaged (-11). Map ----- +----------------------------------------------------+ | ?????????????????????????????????????????????????? | | ??????????????#################################### | | ??????????????# | | ??????????+##+# | | ?????????# | | ?????????? | | ?????????????""" """ ##### | | ??????????????"" """ #### ####### #???# | | ??????????? """ """ #??# #?????# #???# | | ?????????? #??# ##????# #???# | | ?????????? ### #????# #???# | | ?????????? T #????#+#???# | | ?????????? ### #??????????# ##+# | | ?????????? #?# ##??????????# ???? | | ?????????? !! !=l ##? ????????????+ ???? | | ?????????? !! !i/ #?? ???????d??? ##???? | | ?????????? ! !/l #??###??????????" ?????? | | ???????????############ #??????????????? ??????? | | ?????????????????????##l ##?????????????#???????? | | ??????????????????#### ############??????????? | | ??????????????????# " o ???????? | | ??????????????????# "T ! #???????????? | | ??????????????????# ! #???????????? | | ??????????????????#### =%= ######### #???????????? | | ??????????????????######+#######??????????????# "" | | ??????????????????# !@ #??????????????# | | ??????????????????# "" s e #??????????????# | | ??????????????????# "" s #??????????????# "" | | ??????????????????# "T """s #?????????????????? | | ??????????????????# "" """ #??????????+####### | | ??????????????????# "" """ #?????????? | | ??????????????????# #?????????? ! | | ??????????????????# """ """ #??????????? | | ??????????????????# """ """ #????????????? | | ??????????????????# """Y""" #?????????????"" "" | | ??????????????????# #?????????????"" "" | | ??????????????????# #?????????????"" "" | | ??????????????????# #/##########????????????? | | ??????????????????##????????????????????????""" "" | | ?????????????????????????????????????????????"" "" | | ?????????????????????????????????????????????"" "" | | ????????????????????????????????????????????? | | ???????????????????????g???????????????????????### | | ?????????????????????????????????????????????????? | | ?????????????????????????????????????????????????? | | ?????????????????????????????????????????????????? | | ?????????????????????????????????????????????????? | | ?????????????????????????????????????????????????? | | ?????????????????????????????????????????????????? | | ?????????????????????????????????????????????????? | +----------------------------------------------------+ Best States ------------- Heat Dissipation 100 Coolant Potential 100 Energy Generation 43 Energy Capacity 750 Matter Stores 300 Matter Capacity 300 Sight Range 16 Terrain Scan Density 10 Jamming Range 14 Armor Coverage 600 Propulsion Shielding 66 Weapon Cycling 20 Evasion (%) 50 Targeting Accuracy 8 Core Analysis 6 Recoil Reduction 6 Offensive Hacking 10 Relay Coupler Types 1 Relay Coupler Value 39 Item Schematics ----------------- None Robot Schematics ------------------ None Fabricated ------------ Nothing Repaired ---------- Enh. Autogun | 40% | -8/Materials Gauss Rifle | 1% | -7/Factory Studied --------- Hvy. Assault Cannon | -7/Factory | Hacked Gauss Rifle | -7/Factory | Hacked Med. Treads | -7/Factory | Hacked Alien Tech Used ----------------- None Achievements -------------- Hack The Planet Insider Info Mindtrick Not Today, Chutes Oppo Buddy Sixth Sense Versatile Watcher Gambling Well Done Challenges ------------ None Game ------ Seed HellfireOvertunedFlamer Manual? 0 Play Time 03:12:20 Cumulative 155.1 hours Start 2026.02.15 @ 00:15:59 End 2026.02.15 @ 04:11:57 Sessions 1 Manual Loads 0 Difficulty Rogue Special Mode None Game No. 123 Rogue 123 Adventurer 0 Explorer 0 Win Type - Total 2 Types 2/0/0/0/0/0/0/0/0/0 Lore% 66 Gallery% 61 Achievement% 46 Wizard Run 0 Options --------- Layout 1 ASCII 0 Keyboard 0 Movement Numpad Keybinds 0 Fullscreen 1 Font 18/SmallcapsGlow Map View 50x40 Zoom Use 0% Tactical HUD 1 Map Filters NONE Filters NONE Steam 1 RUN: 37a9af34-6275-4591-9dba-8861abee17cb